Workbook

Sheet Проект 1 (hidden)
B1: Проект | D1: Содержантки - Перезагрузка
B2: Итого: | D2: =SUM(D6:D67) -> 182350 | E2: =SUM(E6:E67) -> 144795 | F2: =SUM(F6:F67) -> 37555 | G2: =SUM(G6:G67) -> 0 | H2: =SUM(H6:H67) -> 107487 | I2: =SUM(I6:I67) -> 22500 | J2: 5000 | K2: 3000 | L2: 6808 | M2: 230 | N2: 172500 | O2: 0 | P2: 0 | Q2: 1 | R2: 2500 | S2: 0 | T2: 0 | U2: 210 | V2: 7350 | W2: 0 | X2: 0 | Z2: ИТОГ Поступлений | AA2: =SUM(AA15:AA31) -> 262500 | AD2: =SUM(AD20:AD67) -> 0
H3: Расход | M3: Доход (Стоимость оказанных услуг) | Z3: Прайс на услуги
D4: Доход за день | E4: Расход за день (с учетом Иных) | F4: Прибыль за день | H4: закупка по проекту | I4: зарплата персонала | J4: зарплата Водителя | K4: Г.С.М. | L4: Иные расходы | M4: кол-во обедов | N4: стоимость обедов | O4: кол-во райдеров | P4: стоимость райдеров | Q4: кол-во часов переработки | R4: стоимость перерабоки | S4: кол-во АМС | T4: стоимость обедов АМС | U4: пере -пробег | V4: стоимость перепробега | W4: доп. Вода | X4: стоимость доп. Воды | Z4: Наименование услуги | AA4: цена
B5: дата | N5: =M5*$AA$5 -> 0 | P5: =O5*$AA$6 -> 0 | R5: =Q5*$AA$7 -> 0 | T5: =S5*$AA$8 -> 0 | V5: =U5*$AA$8 -> 0 | X5: =W5*$AA$10 -> 0 | Z5: стоимость обеда | AA5: 750
A6: =IF(AND(B6>=[1]СВОДНАЯ!$B$25,B6<=[1]СВОДНАЯ!$C$25),1,0) -> 0 | B6: 2022-09-01 | D6: =N6+P6+R6+T6+V6+X6 -> 0 | E6: =H6+I6+J6+K6+L6 -> 0 | F6: =D6-E6 -> 0 | N6: 0 | P6: 0 | R6: 0 | T6: 0 | V6: =U6*$AA$8 -> 0 | X6: 0 | Z6: Райдер | AA6: 3000
B7: 2022-09-02 | D7: =N7+P7+R7+T7+V7+X7 -> 0 | E7: =H7+I7+J7+K7+L7 -> 0 | F7: =D7-E7 -> 0 | N7: 0 | P7: 0 | R7: 0 | T7: 0 | V7: 0 | X7: 0 | Z7: Час переработки | AA7: 2500
B8: 2022-09-03 | D8: 0 | E8: 0 | F8: 0 | N8: 0 | P8: 0 | R8: 0 | T8: 0 | V8: 0 | X8: 0 | Z8: Стоимость обед АМС | AA8: 35
A9: =IF(AND(B9>=[1]СВОДНАЯ!$B$25,B9<=[1]СВОДНАЯ!$C$25),1,0) -> 0 | B9: 2022-09-04 | D9: 64950 | E9: 68427 | F9: -3477 | H9: 48619 | I9: 7500 | J9: 2500 | K9: 3000 | L9: 6808 | M9: 80 | N9: 60000 | P9: 0 | Q9: 1 | R9: 2500 | T9: 0 | U9: 70 | V9: 2450 | X9: 0 | Z9: стоимость пробег | AA9: 200
A10: =IF(AND(B10>=[1]СВОДНАЯ!$B$25,B10<=[1]СВОДНАЯ!$C$25),1,0) -> 0 | B10: 2022-09-05 | D10: 58700 | E10: 33628 | F10: 25072 | H10: 26128 | I10: 7500 | M10: 75 | N10: 56250 | P10: 0 | R10: 0 | T10: 0 | U10: 70 | V10: 2450 | X10: 0 | Z10: Дополнительная вода | AA10: 400
A11: =IF(AND(B11>=[1]СВОДНАЯ!$B$25,B11<=[1]СВОДНАЯ!$C$25),1,0) -> 0 | B11: 2022-09-06 | D11: 58700 | E11: 42740 | F11: 15960 | H11: =19249+7489+550+5452 -> 32740 | I11: 7500 | J11: 2500 | M11: 75 | N11: 56250 | P11: 0 | R11: 0 | T11: 0 | U11: 70 | V11: 2450 | X11: 0
A12: =IF(AND(B12>=[1]СВОДНАЯ!$B$25,B12<=[1]СВОДНАЯ!$C$25),1,0) -> 0 | B12: 2022-09-07 | D12: 0 | E12: 0 | F12: 0 | N12: 0 | P12: 0 | R12: 0 | T12: 0 | V12: 0 | X12: 0 | Z12: Поступления средств
A13: =IF(AND(B13>=[1]СВОДНАЯ!$B$25,B13<=[1]СВОДНАЯ!$C$25),1,0) -> 0 | B13: 2022-09-08 | D13: 0 | E13: 0 | F13: 0 | N13: 0 | P13: 0 | R13: 0 | T13: 0 | V13: 0 | X13: 0 | Z13: дата поступление денег | AA13: Сумма
A14: =IF(AND(B14>=[1]СВОДНАЯ!$B$25,B14<=[1]СВОДНАЯ!$C$25),1,0) -> 0 | B14: 2022-09-09 | D14: 0 | E14: 0 | F14: 0 | N14: 0 | P14: 0 | R14: 0 | T14: 0 | V14: 0 | X14: 0
A15: =IF(AND(B15>=[1]СВОДНАЯ!$B$25,B15<=[1]СВОДНАЯ!$C$25),1,0) -> 0 | B15: 2022-09-10 | D15: 0 | E15: 0 | F15: 0 | N15: 0 | P15: 0 | R15: 0 | T15: 0 | V15: 0 | X15: 0 | Z15: 2022-09-02 | AA15: 262500
A16: =IF(AND(B16>=[1]СВОДНАЯ!$B$25,B16<=[1]СВОДНАЯ!$C$25),1,0) -> 0 | B16: 2022-09-11 | D16: 0 | E16: 0 | F16: 0 | N16: 0 | P16: 0 | R16: 0 | T16: 0 | V16: 0 | X16: 0
A17: =IF(AND(B17>=[1]СВОДНАЯ!$B$25,B17<=[1]СВОДНАЯ!$C$25),1,0) -> 0 | B17: 2022-09-12 | D17: 0 | E17: 0 | F17: 0 | N17: 0 | P17: 0 | R17: 0 | T17: 0 | V17: 0 | X17: 0 | AC17: Выплаты на закупку
A18: =IF(AND(B18>=[1]СВОДНАЯ!$B$25,B18<=[1]СВОДНАЯ!$C$25),1,0) -> 0 | B18: 2022-09-13 | D18: 0 | E18: 0 | F18: 0 | N18: 0 | P18: 0 | R18: 0 | T18: 0 | V18: 0 | X18: 0 | AC18: дата транша на закупку | AD18: Сумма
A19: =IF(AND(B19>=[1]СВОДНАЯ!$B$25,B19<=[1]СВОДНАЯ!$C$25),1,0) -> 0 | B19: 2022-09-14 | D19: 0 | E19: 0 | F19: 0 | N19: 0 | P19: 0 | R19: 0 | T19: 0 | V19: 0 | X19: 0
A20: =IF(AND(B20>=[1]СВОДНАЯ!$B$25,B20<=[1]СВОДНАЯ!$C$25),1,0) -> 0 | B20: 2022-09-15 | D20: 0 | E20: 0 | F20: 0 | N20: 0 | P20: 0 | R20: 0 | T20: 0 | V20: 0 | X20: 0
A21: =IF(AND(B21>=[1]СВОДНАЯ!$B$25,B21<=[1]СВОДНАЯ!$C$25),1,0) -> 0 | B21: 2022-09-16 | D21: 0 | E21: 0 | F21: 0 | N21: 0 | P21: 0 | R21: 0 | T21: 0 | V21: 0 | X21: 0
A22: =IF(AND(B22>=[1]СВОДНАЯ!$B$25,B22<=[1]СВОДНАЯ!$C$25),1,0) -> 0 | B22: 2022-09-17 | D22: 0 | E22: 0 | F22: 0 | N22: 0 | P22: 0 | R22: 0 | T22: 0 | V22: 0 | X22: 0
A23: =IF(AND(B23>=[1]СВОДНАЯ!$B$25,B23<=[1]СВОДНАЯ!$C$25),1,0) -> 0 | B23: 2022-09-18 | D23: 0 | E23: 0 | F23: 0 | N23: 0 | P23: 0 | R23: 0 | T23: 0 | V23: 0 | X23: 0
A24: =IF(AND(B24>=[1]СВОДНАЯ!$B$25,B24<=[1]СВОДНАЯ!$C$25),1,0) -> 0 | B24: 2022-09-19 | D24: 0 | E24: 0 | F24: 0 | N24: 0 | P24: 0 | R24: 0 | T24: 0 | V24: 0 | X24: 0
A25: =IF(AND(B25>=[1]СВОДНАЯ!$B$25,B25<=[1]СВОДНАЯ!$C$25),1,0) -> 0 | B25: 2022-09-20 | D25: 0 | E25: 0 | F25: 0 | N25: 0 | P25: 0 | R25: 0 | T25: 0 | V25: 0 | X25: 0
A26: =IF(AND(B26>=[1]СВОДНАЯ!$B$25,B26<=[1]СВОДНАЯ!$C$25),1,0) -> 0 | B26: 2022-09-21 | D26: 0 | E26: 0 | F26: 0 | N26: 0 | P26: 0 | R26: 0 | T26: 0 | V26: 0 | X26: 0
A27: =IF(AND(B27>=[1]СВОДНАЯ!$B$25,B27<=[1]СВОДНАЯ!$C$25),1,0) -> 0 | B27: 2022-09-22 | D27: 0 | E27: 0 | F27: 0 | N27: 0 | P27: 0 | R27: 0 | T27: 0 | V27: 0 | X27: 0
A28: =IF(AND(B28>=[1]СВОДНАЯ!$B$25,B28<=[1]СВОДНАЯ!$C$25),1,0) -> 0 | B28: 2022-09-23 | D28: 0 | E28: 0 | F28: 0 | N28: 0 | P28: 0 | R28: 0 | T28: 0 | V28: 0 | X28: 0
A29: =IF(AND(B29>=[1]СВОДНАЯ!$B$25,B29<=[1]СВОДНАЯ!$C$25),1,0) -> 0 | B29: 2022-09-24 | D29: 0 | E29: 0 | F29: 0 | N29: 0 | P29: 0 | R29: 0 | T29: 0 | V29: 0 | X29: 0
A30: =IF(AND(B30>=[1]СВОДНАЯ!$B$25,B30<=[1]СВОДНАЯ!$C$25),1,0) -> 0 | B30: 2022-09-25 | D30: 0 | E30: 0 | F30: 0 | N30: 0 | P30: 0 | R30: 0 | T30: 0 | V30: 0 | X30: 0
A31: =IF(AND(B31>=[1]СВОДНАЯ!$B$25,B31<=[1]СВОДНАЯ!$C$25),1,0) -> 0 | B31: 2022-09-26 | D31: 0 | E31: 0 | F31: 0 | N31: 0 | P31: 0 | R31: 0 | T31: 0 | V31: 0 | X31: 0
A32: =IF(AND(B32>=[1]СВОДНАЯ!$B$25,B32<=[1]СВОДНАЯ!$C$25),1,0) -> 0 | B32: 2022-09-27 | D32: 0 | E32: 0 | F32: 0 | N32: 0 | P32: 0 | R32: 0 | T32: 0 | V32: 0 | X32: 0
A33: =IF(AND(B33>=[1]СВОДНАЯ!$B$25,B33<=[1]СВОДНАЯ!$C$25),1,0) -> 0 | B33: 2022-09-28 | D33: 0 | E33: 0 | F33: 0 | N33: 0 | P33: 0 | R33: 0 | T33: 0 | V33: 0 | X33: 0
A34: =IF(AND(B34>=[1]СВОДНАЯ!$B$25,B34<=[1]СВОДНАЯ!$C$25),1,0) -> 0 | B34: 2022-09-29 | D34: 0 | E34: 0 | F34: 0 | N34: 0 | P34: 0 | R34: 0 | T34: 0 | V34: 0 | X34: 0
A35: =IF(AND(B35>=[1]СВОДНАЯ!$B$25,B35<=[1]СВОДНАЯ!$C$25),1,0) -> 0 | B35: 2022-09-30 | D35: 0 | E35: 0 | F35: 0 | N35: 0 | P35: 0 | R35: 0 | T35: 0 | V35: 0 | X35: 0
A36: =IF(AND(B36>=[1]СВОДНАЯ!$B$25,B36<=[1]СВОДНАЯ!$C$25),1,0) -> 0 | B36: 2022-10-01 | D36: 0 | E36: 0 | F36: 0 | N36: 0 | P36: 0 | R36: 0 | T36: 0 | V36: 0 | X36: 0
A37: =IF(AND(B37>=[1]СВОДНАЯ!$B$25,B37<=[1]СВОДНАЯ!$C$25),1,0) -> 0 | B37: 2022-10-02 | D37: 0 | E37: 0 | F37: 0 | N37: 0 | P37: 0 | R37: 0 | T37: 0 | V37: 0 | X37: 0
A38: =IF(AND(B38>=[1]СВОДНАЯ!$B$25,B38<=[1]СВОДНАЯ!$C$25),1,0) -> 0 | B38: 2022-10-03 | D38: 0 | E38: 0 | F38: 0 | N38: 0 | P38: 0 | R38: 0 | T38: 0 | V38: 0 | X38: 0
A39: =IF(AND(B39>=[1]СВОДНАЯ!$B$25,B39<=[1]СВОДНАЯ!$C$25),1,0) -> 0 | B39: 2022-10-04 | D39: 0 | E39: 0 | F39: 0 | N39: 0 | P39: 0 | R39: 0 | T39: 0 | V39: 0 | X39: 0
A40: =IF(AND(B40>=[1]СВОДНАЯ!$B$25,B40<=[1]СВОДНАЯ!$C$25),1,0) -> 0 | B40: 2022-10-05 | D40: 0 | E40: 0 | F40: 0 | N40: 0 | P40: 0 | R40: 0 | T40: 0 | V40: 0 | X40: 0
A41: =IF(AND(B41>=[1]СВОДНАЯ!$B$25,B41<=[1]СВОДНАЯ!$C$25),1,0) -> 0 | B41: 2022-10-06 | D41: 0 | E41: 0 | F41: 0 | N41: 0 | P41: 0 | R41: 0 | T41: 0 | V41: 0 | X41: 0
A42: =IF(AND(B42>=[1]СВОДНАЯ!$B$25,B42<=[1]СВОДНАЯ!$C$25),1,0) -> 0 | B42: 2022-10-07 | D42: 0 | E42: 0 | F42: 0 | N42: 0 | P42: 0 | R42: 0 | T42: 0 | V42: 0 | X42: 0
A43: =IF(AND(B43>=[1]СВОДНАЯ!$B$25,B43<=[1]СВОДНАЯ!$C$25),1,0) -> 0 | B43: 2022-10-08 | D43: 0 | E43: 0 | F43: 0 | N43: 0 | P43: 0 | R43: 0 | T43: 0 | V43: 0 | X43: 0
A44: =IF(AND(B44>=[1]СВОДНАЯ!$B$25,B44<=[1]СВОДНАЯ!$C$25),1,0) -> 0 | B44: 2022-10-09 | D44: 0 | E44: 0 | F44: 0 | N44: 0 | P44: 0 | R44: 0 | T44: 0 | V44: 0 | X44: 0
A45: =IF(AND(B45>=[1]СВОДНАЯ!$B$25,B45<=[1]СВОДНАЯ!$C$25),1,0) -> 0 | B45: 2022-10-10 | D45: 0 | E45: 0 | F45: 0 | N45: 0 | P45: 0 | R45: 0 | T45: 0 | V45: 0 | X45: 0
A46: =IF(AND(B46>=[1]СВОДНАЯ!$B$25,B46<=[1]СВОДНАЯ!$C$25),1,0) -> 0 | B46: 2022-10-11 | D46: 0 | E46: 0 | F46: 0 | N46: 0 | P46: 0 | R46: 0 | T46: 0 | V46: 0 | X46: 0
A47: =IF(AND(B47>=[1]СВОДНАЯ!$B$25,B47<=[1]СВОДНАЯ!$C$25),1,0) -> 0 | B47: 2022-10-12 | D47: 0 | E47: 0 | F47: 0 | N47: 0 | P47: 0 | R47: 0 | T47: 0 | V47: 0 | X47: 0
A48: =IF(AND(B48>=[1]СВОДНАЯ!$B$25,B48<=[1]СВОДНАЯ!$C$25),1,0) -> 0 | B48: 2022-10-13 | D48: 0 | E48: 0 | F48: 0 | N48: 0 | P48: 0 | R48: 0 | T48: 0 | V48: 0 | X48: 0
A49: =IF(AND(B49>=[1]СВОДНАЯ!$B$25,B49<=[1]СВОДНАЯ!$C$25),1,0) -> 0 | B49: 2022-10-14 | D49: 0 | E49: 0 | F49: 0 | N49: 0 | P49: 0 | R49: 0 | T49: 0 | V49: 0 | X49: 0
A50: =IF(AND(B50>=[1]СВОДНАЯ!$B$25,B50<=[1]СВОДНАЯ!$C$25),1,0) -> 0 | B50: 2022-10-15 | D50: 0 | E50: 0 | F50: 0 | N50: 0 | P50: 0 | R50: 0 | T50: 0 | V50: 0 | X50: 0
A51: =IF(AND(B51>=[1]СВОДНАЯ!$B$25,B51<=[1]СВОДНАЯ!$C$25),1,0) -> 0 | B51: 2022-10-16 | D51: 0 | E51: 0 | F51: 0 | N51: 0 | P51: 0 | R51: 0 | T51: 0 | V51: 0 | X51: 0
A52: =IF(AND(B52>=[1]СВОДНАЯ!$B$25,B52<=[1]СВОДНАЯ!$C$25),1,0) -> 0 | B52: 2022-10-17 | D52: 0 | E52: 0 | F52: 0 | N52: 0 | P52: 0 | R52: 0 | T52: 0 | V52: 0 | X52: 0
A53: =IF(AND(B53>=[1]СВОДНАЯ!$B$25,B53<=[1]СВОДНАЯ!$C$25),1,0) -> 0 | B53: 2022-10-18 | D53: 0 | E53: 0 | F53: 0 | N53: 0 | P53: 0 | R53: 0 | T53: 0 | V53: 0 | X53: 0
A54: =IF(AND(B54>=[1]СВОДНАЯ!$B$25,B54<=[1]СВОДНАЯ!$C$25),1,0) -> 0 | B54: 2022-10-19 | D54: 0 | E54: 0 | F54: 0 | N54: 0 | P54: 0 | R54: 0 | T54: 0 | V54: 0 | X54: 0
A55: =IF(AND(B55>=[1]СВОДНАЯ!$B$25,B55<=[1]СВОДНАЯ!$C$25),1,0) -> 0 | B55: 2022-10-20 | D55: 0 | E55: 0 | F55: 0 | N55: 0 | P55: 0 | R55: 0 | T55: 0 | V55: 0 | X55: 0
A56: =IF(AND(B56>=[1]СВОДНАЯ!$B$25,B56<=[1]СВОДНАЯ!$C$25),1,0) -> 0 | B56: 2022-10-21 | D56: 0 | E56: 0 | F56: 0 | N56: 0 | P56: 0 | R56: 0 | T56: 0 | V56: 0 | X56: 0
A57: =IF(AND(B57>=[1]СВОДНАЯ!$B$25,B57<=[1]СВОДНАЯ!$C$25),1,0) -> 0 | B57: 2022-10-22 | D57: 0 | E57: 0 | F57: 0 | N57: 0 | P57: 0 | R57: 0 | T57: 0 | V57: 0 | X57: 0
A58: =IF(AND(B58>=[1]СВОДНАЯ!$B$25,B58<=[1]СВОДНАЯ!$C$25),1,0) -> 0 | B58: 2022-10-23 | D58: 0 | E58: 0 | F58: 0 | N58: 0 | P58: 0 | R58: 0 | T58: 0 | V58: 0 | X58: 0
A59: =IF(AND(B59>=[1]СВОДНАЯ!$B$25,B59<=[1]СВОДНАЯ!$C$25),1,0) -> 0 | B59: 2022-10-24 | D59: 0 | E59: 0 | F59: 0 | N59: 0 | P59: 0 | R59: 0 | T59: 0 | V59: 0 | X59: 0
A60: =IF(AND(B60>=[1]СВОДНАЯ!$B$25,B60<=[1]СВОДНАЯ!$C$25),1,0) -> 0 | B60: 2022-10-25 | D60: 0 | E60: 0 | F60: 0 | N60: 0 | P60: 0 | R60: 0 | T60: 0 | V60: 0 | X60: 0
A61: =IF(AND(B61>=[1]СВОДНАЯ!$B$25,B61<=[1]СВОДНАЯ!$C$25),1,0) -> 0 | B61: 2022-10-26 | D61: 0 | E61: 0 | F61: 0 | N61: 0 | P61: 0 | R61: 0 | T61: 0 | V61: 0 | X61: 0
A62: =IF(AND(B62>=[1]СВОДНАЯ!$B$25,B62<=[1]СВОДНАЯ!$C$25),1,0) -> 0 | B62: 2022-10-27 | D62: 0 | E62: 0 | F62: 0 | N62: 0 | P62: 0 | R62: 0 | T62: 0 | V62: 0 | X62: 0
A63: =IF(AND(B63>=[1]СВОДНАЯ!$B$25,B63<=[1]СВОДНАЯ!$C$25),1,0) -> 0 | B63: 2022-10-28 | D63: 0 | E63: 0 | F63: 0 | N63: 0 | P63: 0 | R63: 0 | T63: 0 | V63: 0 | X63: 0
A64: =IF(AND(B64>=[1]СВОДНАЯ!$B$25,B64<=[1]СВОДНАЯ!$C$25),1,0) -> 0 | B64: 2022-10-29 | D64: 0 | E64: 0 | F64: 0 | N64: 0 | P64: 0 | R64: 0 | T64: 0 | V64: 0 | X64: 0
A65: =IF(AND(B65>=[1]СВОДНАЯ!$B$25,B65<=[1]СВОДНАЯ!$C$25),1,0) -> 0 | B65: 2022-10-30 | D65: 0 | E65: 0 | F65: 0 | N65: 0 | P65: 0 | R65: 0 | T65: 0 | V65: 0 | X65: 0
A66: =IF(AND(B66>=[1]СВОДНАЯ!$B$25,B66<=[1]СВОДНАЯ!$C$25),1,0) -> 0 | B66: 2022-10-31 | D66: 0 | E66: 0 | F66: 0 | N66: 0 | P66: 0 | R66: 0 | T66: 0 | V66: 0 | X66: 0
A67: =IF(AND(B67>=[1]СВОДНАЯ!$B$25,B67<=[1]СВОДНАЯ!$C$25),1,0) -> 0 | B67: 2022-11-01 | D67: 0 | E67: 0 | F67: 0 | N67: 0 | P67: 0 | R67: 0 | T67: 0 | V67: 0 | X67: 0

Sheet Список_проектов
A1: Проект 1
A2: Проект 2
A3: Проект 3
A4: Проект 4

Sheet Шаблон (hidden)
C2: Проект: | D2: =PROPER(MID(CELL("имяфайла",A1),SEARCH("]",CELL("имяфайла",A1))+1,99)) -> 
A5: дата | C5: Поступило на счет | D5: - % | E5: Выдано на закупку | F5: ЗП
A7: 1-сент. | C7: 0 | D7: 0 | E7: 0 | F7: 0
A8: 2-сент. | C8: 0 | D8: 0 | E8: 0 | F8: 0
A9: 3-сент. | C9: 0 | D9: 0 | E9: 0 | F9: 0
A10: 4-сент. | C10: 0 | D10: 0 | E10: 0 | F10: 0
A11: 5-сент. | C11: 0 | D11: 0 | E11: 0 | F11: 0
A12: 6-сент. | C12: 0 | D12: 0 | E12: 0 | F12: 0
A13: 7-сент. | C13: 0 | D13: 0 | E13: 0 | F13: 0
A14: 8-сент. | C14: 0 | D14: 0 | E14: 0 | F14: 0
A15: 9-сент. | C15: 0 | D15: 0 | E15: 0 | F15: 0
A16: 10-сент. | C16: 0 | D16: 0 | E16: 0 | F16: 0
A17: 11-сент. | C17: 0 | D17: 0 | E17: 0 | F17: 0
A18: 12-сент. | C18: 0 | D18: 0 | E18: 0 | F18: 0
A19: 13-сент. | C19: 0 | D19: 0 | E19: 0 | F19: 0
A20: 14-сент. | C20: 0 | D20: 0 | E20: 0 | F20: 0
A21: 15-сент. | C21: 0 | D21: 0 | E21: 0 | F21: 0
A22: 16-сент. | C22: 0 | D22: 0 | E22: 0 | F22: 0
A23: 17-сент. | C23: 0 | D23: 0 | E23: 0 | F23: 0
A24: 18-сент. | C24: 0 | D24: 0 | E24: 0 | F24: 0
A25: 19-сент. | C25: 0 | D25: 0 | E25: 0 | F25: 0
A26: 20-сент. | C26: 0 | D26: 0 | E26: 0 | F26: 0
A27: 21-сент. | C27: 0 | D27: 0 | E27: 0 | F27: 0
A28: 22-сент. | C28: 0 | D28: 0 | E28: 0 | F28: 0
A29: 23-сент. | C29: 0 | D29: 0 | E29: 0 | F29: 0
A30: 24-сент. | C30: 0 | D30: 0 | E30: 0 | F30: 0
A31: 25-сент. | C31: 0 | D31: 0 | E31: 0 | F31: 0
A32: 26-сент. | C32: 0 | D32: 0 | E32: 0 | F32: 0
A33: 27-сент. | C33: 0 | D33: 0 | E33: 0 | F33: 0
A34: 28-сент. | C34: 0 | D34: 0 | E34: 0 | F34: 0
A35: 29-сент. | C35: 0 | D35: 0 | E35: 0 | F35: 0
A36: 30-сент. | C36: 0 | D36: 0 | E36: 0 | F36: 0

Sheet Холоп 2 (hidden)
B1: Проект | D1: Холоп 2
B2: Итого: | D2: =SUM(D6:D67) -> 1267900 | E2: =SUM(E6:E67) -> 0 | F2: =SUM(F6:F67) -> 1267900 | G2: =SUM(G6:G67) -> 0 | H2: =SUM(H6:H67) -> 0 | I2: =SUM(I6:I67) -> 0 | J2: 0 | K2: 0 | L2: 0 | M2: 847 | N2: 762300 | O2: 21 | P2: 73500 | S2: 20 | T2: 70000 | W2: 283 | X2: 56600 | AA2: 3000 | AB2: 60000 | AC2: 0 | AD2: 0 | AF2: ИТОГ Поступлений | AG2: =SUM(AG20:AG33) -> 1267900 | AJ2: =SUM(AJ20:AJ67) -> 0
H3: Расход | M3: Доход (Стоимость оказанных услуг) | AF3: Прайс на услуги
D4: Доход за день | E4: Расход за день (с учетом Иных) | F4: Прибыль за день | H4: закупка по проекту | I4: зарплата персонала | J4: зарплата Водителя | K4: Г.С.М. | L4: Иные расходы | M4: кол-во обедов | N4: стоимость обедов | O4: кол-во райдеров | P4: стоимость райдеров | Q4: кол-во райдеров Клима Шипенко | R4: стоимость райдеров Клима Шипенко | S4: кол-во часов переработки | T4: стоимость перерабоки | U4: кол-во Обедов без ужина/ОМОН | V4: Стоимость Обедов без ужина/ОМОН | W4: кол-во АМС | X4: стоимость обедов АМС | Y4: Кол-во Обедов подготовки/групповки | Z4: Стоимость Обедов подготовки/групповки | AA4: пере -пробег | AB4: стоимость перепробега | AC4: доп. Вода | AD4: стоимость доп. Воды | AF4: Наименование услуги | AG4: цена
B5: дата | AF5: стоимость обеда | AG5: 900
A6: =IF(AND(B6>=[1]СВОДНАЯ!$B$25,B6<=[1]СВОДНАЯ!$C$25),1,0) -> 0 | B6: 2022-08-01 | D6: =N6+P6+T6+X6+AB6+AD6+R6+V6+Z6 -> 0 | E6: =H6+I6+J6+K6+L6 -> 0 | F6: =D6-E6 -> 0 | N6: =M6*$AG$5 -> 0 | P6: =O6*$AG$6 -> 0 | R6: =Q6*$AG$7 -> 0 | T6: =S6*$AG$9 -> 0 | V6: =U6*$AG$8 -> 0 | X6: =W6*$AG$11 -> 0 | Z6: =Y6*$AG$10 -> 0 | AB6: =AA6*$AG$12 -> 0 | AD6: =AC6*$AG$13 -> 0 | AF6: Райдер | AG6: 3500
B7: 2022-08-02 | D7: =N7+P7+T7+X7+AB7+AD7+R7+V7+Z7 -> 0 | E7: =H7+I7+J7+K7+L7 -> 0 | F7: =D7-E7 -> 0 | N7: =M7*$AG$5 -> 0 | P7: =O7*$AG$6 -> 0 | R7: =Q7*$AG$7 -> 0 | T7: =S7*$AG$9 -> 0 | V7: =U7*$AG$8 -> 0 | X7: =W7*$AG$11 -> 0 | Z7: =Y7*$AG$10 -> 0 | AB7: =AA7*$AG$12 -> 0 | AD7: =AC7*$AG$13 -> 0 | AF7: Райдер Клим Шипенко | AG7: 5500
B8: 2022-08-03 | D8: 0 | E8: 0 | F8: 0 | N8: 0 | P8: 0 | R8: 0 | T8: 0 | V8: 0 | X8: 0 | Z8: 0 | AB8: 0 | AD8: 0 | AF8: Обед без ужина/ОМОН | AG8: 700
A9: =IF(AND(B9>=[1]СВОДНАЯ!$B$25,B9<=[1]СВОДНАЯ!$C$25),1,0) -> 0 | B9: 2022-08-04 | D9: 0 | E9: 0 | F9: 0 | N9: 0 | P9: 0 | R9: 0 | T9: 0 | V9: 0 | X9: 0 | Z9: 0 | AB9: 0 | AD9: 0 | AF9: Час переработки | AG9: 3500
A10: =IF(AND(B10>=[1]СВОДНАЯ!$B$25,B10<=[1]СВОДНАЯ!$C$25),1,0) -> 0 | B10: 2022-08-05 | D10: 0 | E10: 0 | F10: 0 | N10: 0 | P10: 0 | R10: 0 | T10: 0 | V10: 0 | X10: 0 | Z10: 0 | AB10: 0 | AD10: 0 | AF10: Дети/Подготовка/Групповка | AG10: 300
A11: =IF(AND(B11>=[1]СВОДНАЯ!$B$25,B11<=[1]СВОДНАЯ!$C$25),1,0) -> 0 | B11: 2022-08-06 | D11: 0 | E11: 0 | F11: 0 | N11: 0 | P11: 0 | R11: 0 | T11: 0 | V11: 0 | X11: 0 | Z11: 0 | AB11: 0 | AD11: 0 | AF11: Стоимость обед АМС | AG11: 200
A12: =IF(AND(B12>=[1]СВОДНАЯ!$B$25,B12<=[1]СВОДНАЯ!$C$25),1,0) -> 0 | B12: 2022-08-07 | D12: 0 | E12: 0 | F12: 0 | N12: 0 | P12: 0 | R12: 0 | T12: 0 | V12: 0 | X12: 0 | Z12: 0 | AB12: 0 | AD12: 0 | AF12: Километраж | AG12: 20
A13: =IF(AND(B13>=[1]СВОДНАЯ!$B$25,B13<=[1]СВОДНАЯ!$C$25),1,0) -> 0 | B13: 2022-08-08 | D13: 0 | E13: 0 | F13: 0 | N13: 0 | P13: 0 | R13: 0 | T13: 0 | V13: 0 | X13: 0 | Z13: 0 | AB13: 0 | AD13: 0 | AF13: Дополнительная вода | AG13: 400
A14: =IF(AND(B14>=[1]СВОДНАЯ!$B$25,B14<=[1]СВОДНАЯ!$C$25),1,0) -> 0 | B14: 2022-08-09 | D14: 0 | E14: 0 | F14: 0 | N14: 0 | P14: 0 | R14: 0 | T14: 0 | V14: 0 | X14: 0 | Z14: 0 | AB14: 0 | AD14: 0
A15: =IF(AND(B15>=[1]СВОДНАЯ!$B$25,B15<=[1]СВОДНАЯ!$C$25),1,0) -> 0 | B15: 2022-08-10 | D15: 0 | E15: 0 | F15: 0 | N15: 0 | P15: 0 | R15: 0 | T15: 0 | V15: 0 | X15: 0 | Z15: 0 | AB15: 0 | AD15: 0
A16: =IF(AND(B16>=[1]СВОДНАЯ!$B$25,B16<=[1]СВОДНАЯ!$C$25),1,0) -> 0 | B16: 2022-08-11 | D16: 0 | E16: 0 | F16: 0 | N16: 0 | P16: 0 | R16: 0 | T16: 0 | V16: 0 | X16: 0 | Z16: 0 | AB16: 0 | AD16: 0
A17: =IF(AND(B17>=[1]СВОДНАЯ!$B$25,B17<=[1]СВОДНАЯ!$C$25),1,0) -> 0 | B17: 2022-08-12 | D17: 30000 | E17: 0 | F17: 30000 | N17: 0 | P17: 0 | R17: 0 | T17: 0 | V17: 0 | X17: 0 | Z17: 0 | AA17: 1500 | AB17: 30000 | AD17: 0 | AF17: Поступления средств | AI17: Выплаты на закупку
A18: =IF(AND(B18>=[1]СВОДНАЯ!$B$25,B18<=[1]СВОДНАЯ!$C$25),1,0) -> 0 | B18: 2022-08-13 | D18: 0 | E18: 0 | F18: 0 | N18: 0 | P18: 0 | R18: 0 | T18: 0 | V18: 0 | X18: 0 | Z18: 0 | AB18: 0 | AD18: 0 | AF18: дата поступление денег | AG18: Сумма | AI18: дата транша на закупку | AJ18: Сумма
A19: =IF(AND(B19>=[1]СВОДНАЯ!$B$25,B19<=[1]СВОДНАЯ!$C$25),1,0) -> 0 | B19: 2022-08-14 | D19: 9000 | E19: 0 | F19: 9000 | N19: 0 | P19: 0 | R19: 0 | T19: 0 | V19: 0 | X19: 0 | Y19: 30 | Z19: 9000 | AB19: 0 | AD19: 0
A20: =IF(AND(B20>=[1]СВОДНАЯ!$B$25,B20<=[1]СВОДНАЯ!$C$25),1,0) -> 0 | B20: 2022-08-15 | D20: 14100 | E20: 0 | F20: 14100 | N20: 0 | P20: 0 | R20: 0 | T20: 0 | V20: 0 | X20: 0 | Y20: 47 | Z20: 14100 | AB20: 0 | AD20: 0 | AF20: 2022-08-18 | AG20: 500000
A21: =IF(AND(B21>=[1]СВОДНАЯ!$B$25,B21<=[1]СВОДНАЯ!$C$25),1,0) -> 0 | B21: 2022-08-16 | D21: 6600 | E21: 0 | F21: 6600 | N21: 0 | P21: 0 | R21: 0 | T21: 0 | V21: 0 | X21: 0 | Y21: 22 | Z21: 6600 | AB21: 0 | AD21: 0 | AF21: 2022-08-30 | AG21: 637000
A22: =IF(AND(B22>=[1]СВОДНАЯ!$B$25,B22<=[1]СВОДНАЯ!$C$25),1,0) -> 0 | B22: 2022-08-17 | D22: 9000 | E22: 0 | F22: 9000 | N22: 0 | P22: 0 | R22: 0 | T22: 0 | V22: 0 | X22: 0 | Y22: 30 | Z22: 9000 | AB22: 0 | AD22: 0 | AF22: 2022-09-12 | AG22: 130900
A23: =IF(AND(B23>=[1]СВОДНАЯ!$B$25,B23<=[1]СВОДНАЯ!$C$25),1,0) -> 0 | B23: 2022-08-18 | D23: 38700 | E23: 0 | F23: 38700 | N23: 0 | P23: 0 | R23: 0 | T23: 0 | V23: 0 | W23: 63 | X23: 12600 | Y23: 87 | Z23: 26100 | AB23: 0 | AD23: 0
A24: =IF(AND(B24>=[1]СВОДНАЯ!$B$25,B24<=[1]СВОДНАЯ!$C$25),1,0) -> 0 | B24: 2022-08-19 | D24: 197000 | E24: 0 | F24: 197000 | M24: 190 | N24: 171000 | O24: 5 | P24: 17500 | Q24: 1 | R24: 5500 | T24: 0 | V24: 0 | W24: 15 | X24: 3000 | Z24: 0 | AB24: 0 | AD24: 0
A25: =IF(AND(B25>=[1]СВОДНАЯ!$B$25,B25<=[1]СВОДНАЯ!$C$25),1,0) -> 0 | B25: 2022-08-20 | D25: 109400 | E25: 0 | F25: 109400 | M25: 102 | N25: 91800 | O25: 2 | P25: 7000 | Q25: 1 | R25: 5500 | S25: 1 | T25: 3500 | V25: 0 | W25: 8 | X25: 1600 | Z25: 0 | AB25: 0 | AD25: 0
A26: =IF(AND(B26>=[1]СВОДНАЯ!$B$25,B26<=[1]СВОДНАЯ!$C$25),1,0) -> 0 | B26: 2022-08-21 | D26: 131800 | E26: 0 | F26: 131800 | M26: 107 | N26: 96300 | O26: 2 | P26: 7000 | Q26: 1 | R26: 5500 | S26: 4 | T26: 14000 | V26: 0 | W26: 30 | X26: 6000 | Y26: 10 | Z26: 3000 | AB26: 0 | AD26: 0
A27: =IF(AND(B27>=[1]СВОДНАЯ!$B$25,B27<=[1]СВОДНАЯ!$C$25),1,0) -> 0 | B27: 2022-08-22 | D27: 140500 | E27: 0 | F27: 140500 | M27: 109 | N27: 98100 | O27: 2 | P27: 7000 | Q27: 1 | R27: 5500 | S27: 3 | T27: 10500 | U27: 8 | V27: 5600 | W27: 30 | X27: 6000 | Y27: 26 | Z27: 7800 | AB27: 0 | AD27: 0
A28: =IF(AND(B28>=[1]СВОДНАЯ!$B$25,B28<=[1]СВОДНАЯ!$C$25),1,0) -> 0 | B28: 2022-08-23 | D28: 160000 | E28: 0 | F28: 160000 | M28: 121 | N28: 108900 | O28: 5 | P28: 17500 | Q28: 1 | R28: 5500 | S28: 4 | T28: 14000 | V28: 0 | W28: 30 | X28: 6000 | Y28: 27 | Z28: 8100 | AB28: 0 | AD28: 0
A29: =IF(AND(B29>=[1]СВОДНАЯ!$B$25,B29<=[1]СВОДНАЯ!$C$25),1,0) -> 0 | B29: 2022-08-24 | D29: 0 | E29: 0 | F29: 0 | N29: 0 | P29: 0 | R29: 0 | T29: 0 | V29: 0 | X29: 0 | Z29: 0 | AB29: 0 | AD29: 0
A30: =IF(AND(B30>=[1]СВОДНАЯ!$B$25,B30<=[1]СВОДНАЯ!$C$25),1,0) -> 0 | B30: 2022-08-25 | D30: 0 | E30: 0 | F30: 0 | N30: 0 | P30: 0 | R30: 0 | T30: 0 | V30: 0 | X30: 0 | Z30: 0 | AB30: 0 | AD30: 0
A31: =IF(AND(B31>=[1]СВОДНАЯ!$B$25,B31<=[1]СВОДНАЯ!$C$25),1,0) -> 0 | B31: 2022-08-26 | D31: 24500 | E31: 0 | F31: 24500 | N31: 0 | P31: 0 | R31: 0 | T31: 0 | V31: 0 | W31: 31 | X31: 6200 | Y31: 61 | Z31: 18300 | AB31: 0 | AD31: 0
A32: =IF(AND(B32>=[1]СВОДНАЯ!$B$25,B32<=[1]СВОДНАЯ!$C$25),1,0) -> 0 | B32: 2022-08-27 | D32: 163700 | E32: 0 | F32: 163700 | M32: 115 | N32: 103500 | O32: 3 | P32: 10500 | Q32: 1 | R32: 5500 | S32: 8 | T32: 28000 | V32: 0 | W32: 36 | X32: 7200 | Y32: 30 | Z32: 9000 | AB32: 0 | AD32: 0
A33: =IF(AND(B33>=[1]СВОДНАЯ!$B$25,B33<=[1]СВОДНАЯ!$C$25),1,0) -> 0 | B33: 2022-08-28 | D33: 96400 | E33: 0 | F33: 96400 | N33: 0 | O33: 1 | P33: 3500 | Q33: 1 | R33: 5500 | T33: 0 | U33: 105 | V33: 73500 | W33: 20 | X33: 4000 | Y33: 33 | Z33: 9900 | AB33: 0 | AD33: 0
A34: =IF(AND(B34>=[1]СВОДНАЯ!$B$25,B34<=[1]СВОДНАЯ!$C$25),1,0) -> 0 | B34: 2022-08-29 | D34: 0 | E34: 0 | F34: 0 | N34: 0 | P34: 0 | R34: 0 | T34: 0 | V34: 0 | X34: 0 | Z34: =Y34*$AG$10 -> 0 | AB34: 0 | AD34: 0
A35: =IF(AND(B35>=[1]СВОДНАЯ!$B$25,B35<=[1]СВОДНАЯ!$C$25),1,0) -> 0 | B35: 2022-08-30 | D35: 137200 | E35: 0 | F35: 137200 | M35: 103 | N35: 92700 | O35: 1 | P35: 3500 | Q35: 1 | R35: 5500 | T35: 0 | V35: 0 | W35: 20 | X35: 4000 | Y35: 5 | Z35: 1500 | AA35: 1500 | AB35: 30000 | AD35: 0
A36: =IF(AND(B36>=[1]СВОДНАЯ!$B$25,B36<=[1]СВОДНАЯ!$C$25),1,0) -> 0 | B36: 2022-08-31 | D36: 0 | E36: 0 | F36: 0 | N36: 0 | P36: 0 | R36: 0 | T36: 0 | V36: 0 | X36: 0 | Z36: 0 | AB36: 0 | AD36: 0
A37: =IF(AND(B37>=[1]СВОДНАЯ!$B$25,B37<=[1]СВОДНАЯ!$C$25),1,0) -> 0 | B37: ---------- | D37: 0 | E37: 0 | F37: 0 | N37: 0 | P37: 0 | R37: 0 | T37: 0 | V37: 0 | X37: 0 | Z37: 0 | AB37: 0 | AD37: 0
A38: =IF(AND(B38>=[1]СВОДНАЯ!$B$25,B38<=[1]СВОДНАЯ!$C$25),1,0) -> 0 | B38: ---------- | D38: 0 | E38: 0 | F38: 0 | N38: 0 | P38: 0 | R38: 0 | T38: 0 | V38: 0 | X38: 0 | Z38: 0 | AB38: 0 | AD38: 0
A39: =IF(AND(B39>=[1]СВОДНАЯ!$B$25,B39<=[1]СВОДНАЯ!$C$25),1,0) -> 0 | B39: 2022-11-12 | D39: 0 | E39: 0 | F39: 0 | N39: 0 | P39: 0 | R39: 0 | T39: 0 | V39: 0 | X39: 0 | Z39: 0 | AB39: 0 | AD39: 0
A40: =IF(AND(B40>=[1]СВОДНАЯ!$B$25,B40<=[1]СВОДНАЯ!$C$25),1,0) -> 0 | B40: 2022-11-13 | D40: 0 | E40: 0 | F40: 0 | N40: 0 | P40: 0 | R40: 0 | T40: 0 | V40: 0 | X40: 0 | Z40: 0 | AB40: 0 | AD40: 0
A41: =IF(AND(B41>=[1]СВОДНАЯ!$B$25,B41<=[1]СВОДНАЯ!$C$25),1,0) -> 0 | B41: 2022-11-14 | D41: 0 | E41: 0 | F41: 0 | N41: 0 | P41: 0 | R41: 0 | T41: 0 | V41: 0 | X41: 0 | Z41: 0 | AB41: 0 | AD41: 0
A42: =IF(AND(B42>=[1]СВОДНАЯ!$B$25,B42<=[1]СВОДНАЯ!$C$25),1,0) -> 0 | B42: 2022-11-15 | D42: 0 | E42: 0 | F42: 0 | N42: 0 | P42: 0 | R42: 0 | T42: 0 | V42: 0 | X42: 0 | Z42: 0 | AB42: 0 | AD42: 0
A43: =IF(AND(B43>=[1]СВОДНАЯ!$B$25,B43<=[1]СВОДНАЯ!$C$25),1,0) -> 0 | B43: 2022-11-16 | D43: 0 | E43: 0 | F43: 0 | N43: 0 | P43: 0 | R43: 0 | T43: 0 | V43: 0 | X43: 0 | Z43: 0 | AB43: 0 | AD43: 0
A44: =IF(AND(B44>=[1]СВОДНАЯ!$B$25,B44<=[1]СВОДНАЯ!$C$25),1,0) -> 0 | B44: 2022-11-17 | D44: 0 | E44: 0 | F44: 0 | N44: 0 | P44: 0 | R44: 0 | T44: 0 | V44: 0 | X44: 0 | Z44: 0 | AB44: 0 | AD44: 0
A45: =IF(AND(B45>=[1]СВОДНАЯ!$B$25,B45<=[1]СВОДНАЯ!$C$25),1,0) -> 0 | B45: 2022-11-18 | D45: 0 | E45: 0 | F45: 0 | N45: 0 | P45: 0 | R45: 0 | T45: 0 | V45: 0 | X45: 0 | Z45: 0 | AB45: 0 | AD45: 0
A46: =IF(AND(B46>=[1]СВОДНАЯ!$B$25,B46<=[1]СВОДНАЯ!$C$25),1,0) -> 0 | B46: 2022-11-19 | D46: 0 | E46: 0 | F46: 0 | N46: 0 | P46: 0 | R46: 0 | T46: 0 | V46: 0 | X46: 0 | Z46: 0 | AB46: 0 | AD46: 0
A47: =IF(AND(B47>=[1]СВОДНАЯ!$B$25,B47<=[1]СВОДНАЯ!$C$25),1,0) -> 0 | B47: 2022-11-20 | D47: 0 | E47: 0 | F47: 0 | N47: 0 | P47: 0 | R47: 0 | T47: 0 | V47: 0 | X47: 0 | Z47: 0 | AB47: 0 | AD47: 0
A48: =IF(AND(B48>=[1]СВОДНАЯ!$B$25,B48<=[1]СВОДНАЯ!$C$25),1,0) -> 0 | B48: 2022-11-21 | D48: 0 | E48: 0 | F48: 0 | N48: 0 | P48: 0 | R48: 0 | T48: 0 | V48: 0 | X48: 0 | Z48: =Y48*$AG$10 -> 0 | AB48: 0 | AD48: 0
A49: =IF(AND(B49>=[1]СВОДНАЯ!$B$25,B49<=[1]СВОДНАЯ!$C$25),1,0) -> 0 | B49: 2022-11-22 | D49: 0 | E49: 0 | F49: 0 | N49: 0 | P49: 0 | R49: 0 | T49: 0 | V49: 0 | X49: 0 | Z49: 0 | AB49: 0 | AD49: 0
A50: =IF(AND(B50>=[1]СВОДНАЯ!$B$25,B50<=[1]СВОДНАЯ!$C$25),1,0) -> 0 | B50: 2022-11-23 | D50: 0 | E50: 0 | F50: 0 | N50: 0 | P50: 0 | R50: 0 | T50: 0 | V50: 0 | X50: 0 | Z50: 0 | AB50: 0 | AD50: 0
A51: =IF(AND(B51>=[1]СВОДНАЯ!$B$25,B51<=[1]СВОДНАЯ!$C$25),1,0) -> 0 | B51: 2022-11-24 | D51: 0 | E51: 0 | F51: 0 | N51: 0 | P51: 0 | R51: 0 | T51: 0 | V51: 0 | X51: 0 | Z51: 0 | AB51: 0 | AD51: 0
A52: =IF(AND(B52>=[1]СВОДНАЯ!$B$25,B52<=[1]СВОДНАЯ!$C$25),1,0) -> 0 | B52: 2022-11-25 | D52: 0 | E52: 0 | F52: 0 | N52: 0 | P52: 0 | R52: 0 | T52: 0 | V52: 0 | X52: 0 | Z52: 0 | AB52: 0 | AD52: 0
A53: =IF(AND(B53>=[1]СВОДНАЯ!$B$25,B53<=[1]СВОДНАЯ!$C$25),1,0) -> 0 | B53: 2022-11-26 | D53: 0 | E53: 0 | F53: 0 | N53: 0 | P53: 0 | R53: 0 | T53: 0 | V53: 0 | X53: 0 | Z53: 0 | AB53: 0 | AD53: 0
A54: =IF(AND(B54>=[1]СВОДНАЯ!$B$25,B54<=[1]СВОДНАЯ!$C$25),1,0) -> 0 | B54: 2022-11-27 | D54: 0 | E54: 0 | F54: 0 | N54: 0 | P54: 0 | R54: 0 | T54: 0 | V54: 0 | X54: 0 | Z54: 0 | AB54: 0 | AD54: 0
A55: =IF(AND(B55>=[1]СВОДНАЯ!$B$25,B55<=[1]СВОДНАЯ!$C$25),1,0) -> 0 | B55: 2022-11-28 | D55: 0 | E55: 0 | F55: 0 | N55: 0 | P55: 0 | R55: 0 | T55: 0 | V55: 0 | X55: 0 | Z55: 0 | AB55: 0 | AD55: 0
A56: =IF(AND(B56>=[1]СВОДНАЯ!$B$25,B56<=[1]СВОДНАЯ!$C$25),1,0) -> 0 | B56: 2022-11-29 | D56: 0 | E56: 0 | F56: 0 | N56: 0 | P56: 0 | R56: 0 | T56: 0 | V56: 0 | X56: 0 | Z56: 0 | AB56: 0 | AD56: 0
A57: =IF(AND(B57>=[1]СВОДНАЯ!$B$25,B57<=[1]СВОДНАЯ!$C$25),1,0) -> 0 | B57: 2022-11-30 | D57: 0 | E57: 0 | F57: 0 | N57: 0 | P57: 0 | R57: 0 | T57: 0 | V57: 0 | X57: 0 | Z57: 0 | AB57: 0 | AD57: 0
A58: =IF(AND(B58>=[1]СВОДНАЯ!$B$25,B58<=[1]СВОДНАЯ!$C$25),1,0) -> 0 | B58: 2022-12-01 | D58: 0 | E58: 0 | F58: 0 | N58: 0 | P58: 0 | R58: 0 | T58: 0 | V58: 0 | X58: 0 | Z58: 0 | AB58: 0 | AD58: 0
A59: =IF(AND(B59>=[1]СВОДНАЯ!$B$25,B59<=[1]СВОДНАЯ!$C$25),1,0) -> 0 | B59: 2022-12-02 | D59: 0 | E59: 0 | F59: 0 | N59: 0 | P59: 0 | R59: 0 | T59: 0 | V59: 0 | X59: 0 | Z59: 0 | AB59: 0 | AD59: 0
A60: =IF(AND(B60>=[1]СВОДНАЯ!$B$25,B60<=[1]СВОДНАЯ!$C$25),1,0) -> 0 | B60: 2022-12-03 | D60: 0 | E60: 0 | F60: 0 | N60: 0 | P60: 0 | R60: 0 | T60: 0 | V60: 0 | X60: 0 | Z60: 0 | AB60: 0 | AD60: 0
A61: =IF(AND(B61>=[1]СВОДНАЯ!$B$25,B61<=[1]СВОДНАЯ!$C$25),1,0) -> 0 | B61: 2022-12-04 | D61: 0 | E61: 0 | F61: 0 | N61: 0 | P61: 0 | R61: 0 | T61: 0 | V61: 0 | X61: 0 | Z61: 0 | AB61: 0 | AD61: 0
A62: =IF(AND(B62>=[1]СВОДНАЯ!$B$25,B62<=[1]СВОДНАЯ!$C$25),1,0) -> 0 | B62: 2022-12-05 | D62: 0 | E62: 0 | F62: 0 | N62: 0 | P62: 0 | R62: 0 | T62: 0 | V62: 0 | X62: 0 | Z62: 0 | AB62: 0 | AD62: 0
A63: =IF(AND(B63>=[1]СВОДНАЯ!$B$25,B63<=[1]СВОДНАЯ!$C$25),1,0) -> 0 | B63: 2022-12-06 | D63: 0 | E63: 0 | F63: 0 | N63: 0 | P63: 0 | R63: 0 | T63: 0 | V63: 0 | X63: 0 | Z63: 0 | AB63: 0 | AD63: 0
A64: =IF(AND(B64>=[1]СВОДНАЯ!$B$25,B64<=[1]СВОДНАЯ!$C$25),1,0) -> 0 | B64: 2022-12-07 | D64: 0 | E64: 0 | F64: 0 | N64: 0 | P64: 0 | R64: 0 | T64: 0 | V64: 0 | X64: 0 | Z64: 0 | AB64: 0 | AD64: 0
A65: =IF(AND(B65>=[1]СВОДНАЯ!$B$25,B65<=[1]СВОДНАЯ!$C$25),1,0) -> 0 | B65: 2022-12-08 | D65: 0 | E65: 0 | F65: 0 | N65: 0 | P65: 0 | R65: 0 | T65: 0 | V65: 0 | X65: 0 | Z65: 0 | AB65: 0 | AD65: 0
A66: =IF(AND(B66>=[1]СВОДНАЯ!$B$25,B66<=[1]СВОДНАЯ!$C$25),1,0) -> 0 | B66: 2022-12-09 | D66: 0 | E66: 0 | F66: 0 | N66: 0 | P66: 0 | R66: 0 | T66: 0 | V66: 0 | X66: 0 | Z66: 0 | AB66: 0 | AD66: 0
A67: =IF(AND(B67>=[1]СВОДНАЯ!$B$25,B67<=[1]СВОДНАЯ!$C$25),1,0) -> 0 | B67: 2022-12-10 | D67: 0 | E67: 0 | F67: 0 | N67: 0 | P67: 0 | R67: 0 | T67: 0 | V67: 0 | X67: 0 | Z67: 0 | AB67: 0 | AD67: 0

Sheet Юность (hidden)
B1: Проект | D1: Юность
B2: Итого: | D2: =SUM(D6:D67) -> 688180 | E2: =SUM(E6:E67) -> 548188 | F2: =SUM(F6:F67) -> 139992 | G2: =SUM(G6:G67) -> 0 | H2: =SUM(H6:H67) -> 294210 | I2: =SUM(I6:I67) -> 56500 | J2: 17500 | K2: 9333 | L2: 170645 | M2: 897 | N2: 621900 | O2: 10 | P2: 35000 | Q2: 3 | R2: 10500 | S2: 40 | T2: 10000 | U2: 308 | V2: 10780 | W2: 0 | X2: 0 | Z2: ИТОГ Поступлений | AA2: =SUM(AA15:AA39) -> 688180 | AD2: =SUM(AD20:AD67) -> 0
H3: Расход | M3: Доход (Стоимость оказанных услуг) | Z3: Прайс на услуги
D4: Доход за день | E4: Расход за день (с учетом Иных) | F4: Прибыль за день | H4: закупка по проекту | I4: зарплата персонала | J4: зарплата Водителя | K4: Г.С.М. | L4: Иные расходы | M4: кол-во обедов | N4: стоимость обедов | O4: кол-во райдеров | P4: стоимость райдеров | Q4: кол-во часов переработки | R4: стоимость перерабоки | S4: кол-во АМС | T4: стоимость обедов АМС | U4: пере -пробег | V4: стоимость перепробега | W4: доп. Вода | X4: стоимость доп. Воды | Z4: Наименование услуги | AA4: цена
B5: дата | N5: =M5*$AA$5 -> 0 | P5: =O5*$AA$6 -> 0 | R5: =Q5*$AA$7 -> 0 | T5: =S5*$AA$8 -> 0 | V5: =U5*$AA$8 -> 0 | X5: =W5*$AA$10 -> 0 | Z5: стоимость обеда | AA5: 700
A6: =IF(AND(B6>=[1]СВОДНАЯ!$B$25,B6<=[1]СВОДНАЯ!$C$25),1,0) -> 0 | B6: 2022-08-01 | D6: =N6+P6+R6+T6+V6+X6 -> 0 | E6: =H6+I6+J6+K6+L6 -> 0 | F6: =D6-E6 -> 0 | N6: 0 | P6: 0 | R6: 0 | T6: 0 | V6: =U6*$AA$8 -> 0 | X6: 0 | Z6: Райдер | AA6: 3500
B7: 2022-08-02 | D7: =N7+P7+R7+T7+V7+X7 -> 0 | E7: =H7+I7+J7+K7+L7 -> 0 | F7: =D7-E7 -> 0 | N7: 0 | P7: 0 | R7: 0 | T7: 0 | V7: 0 | X7: 0 | Z7: Час переработки | AA7: 3500
B8: 2022-08-03 | D8: 0 | E8: 0 | F8: 0 | N8: 0 | P8: 0 | R8: 0 | T8: 0 | V8: 0 | X8: 0 | Z8: Стоимость обед АМС | AA8: 35
A9: =IF(AND(B9>=[1]СВОДНАЯ!$B$25,B9<=[1]СВОДНАЯ!$C$25),1,0) -> 0 | B9: 2022-08-04 | D9: 0 | E9: 0 | F9: 0 | N9: 0 | P9: 0 | R9: 0 | T9: 0 | V9: 0 | X9: 0 | Z9: стоимость пробег | AA9: 200
A10: =IF(AND(B10>=[1]СВОДНАЯ!$B$25,B10<=[1]СВОДНАЯ!$C$25),1,0) -> 0 | B10: 2022-08-05 | D10: 0 | E10: 4000 | F10: -4000 | L10: 4000 | N10: 0 | P10: 0 | R10: 0 | T10: 0 | V10: 0 | X10: 0 | Z10: Дополнительная вода | AA10: 400
A11: =IF(AND(B11>=[1]СВОДНАЯ!$B$25,B11<=[1]СВОДНАЯ!$C$25),1,0) -> 0 | B11: 2022-08-06 | D11: 0 | E11: 0 | F11: 0 | N11: 0 | P11: 0 | R11: 0 | T11: 0 | V11: 0 | X11: 0
A12: =IF(AND(B12>=[1]СВОДНАЯ!$B$25,B12<=[1]СВОДНАЯ!$C$25),1,0) -> 0 | B12: 2022-08-07 | D12: 0 | E12: 0 | F12: 0 | N12: 0 | P12: 0 | R12: 0 | T12: 0 | V12: 0 | X12: 0 | Z12: Поступления средств
A13: =IF(AND(B13>=[1]СВОДНАЯ!$B$25,B13<=[1]СВОДНАЯ!$C$25),1,0) -> 0 | B13: 2022-08-08 | D13: 0 | E13: 0 | F13: 0 | N13: 0 | P13: 0 | R13: 0 | T13: 0 | V13: 0 | X13: 0 | Z13: дата поступление денег | AA13: Сумма
A14: =IF(AND(B14>=[1]СВОДНАЯ!$B$25,B14<=[1]СВОДНАЯ!$C$25),1,0) -> 0 | B14: 2022-08-09 | D14: 1050 | E14: 62392 | F14: -61342 | H14: 3750 | L14: 58642 | N14: 0 | P14: 0 | R14: 0 | T14: 0 | U14: 30 | V14: 1050 | X14: 0
A15: =IF(AND(B15>=[1]СВОДНАЯ!$B$25,B15<=[1]СВОДНАЯ!$C$25),1,0) -> 0 | B15: 2022-08-10 | D15: 74900 | E15: 77068 | F15: -2168 | H15: 42088 | I15: 4000 | K15: 1000 | L15: 29980 | M15: 92 | N15: 64400 | O15: 2 | P15: 7000 | Q15: 1 | R15: 3500 | T15: 0 | V15: 0 | X15: 0 | Z15: 2022-08-09 | AA15: 250000
A16: =IF(AND(B16>=[1]СВОДНАЯ!$B$25,B16<=[1]СВОДНАЯ!$C$25),1,0) -> 0 | B16: 2022-08-11 | D16: 1050 | E16: 16287 | F16: -15237 | H16: 13037 | L16: 3250 | N16: 0 | P16: 0 | R16: 0 | T16: 0 | U16: 30 | V16: 1050 | X16: 0 | Z16: 2022-08-15 | AA16: 250000
A17: =IF(AND(B17>=[1]СВОДНАЯ!$B$25,B17<=[1]СВОДНАЯ!$C$25),1,0) -> 0 | B17: 2022-08-12 | D17: 74900 | E17: 89863 | F17: -14963 | H17: 51079 | I17: 7500 | J17: 2500 | K17: 1833 | L17: 26951 | M17: 92 | N17: 64400 | O17: 2 | P17: 7000 | Q17: 1 | R17: 3500 | T17: 0 | V17: 0 | X17: 0 | Z17: 2022-09-04 | AA17: 136500 | AC17: Выплаты на закупку
A18: =IF(AND(B18>=[1]СВОДНАЯ!$B$25,B18<=[1]СВОДНАЯ!$C$25),1,0) -> 0 | B18: 2022-08-13 | D18: 60900 | E18: 29113 | F18: 31787 | H18: 17363 | I18: 7500 | J18: 2500 | K18: 1000 | L18: 750 | M18: 82 | N18: 57400 | O18: 1 | P18: 3500 | R18: 0 | T18: 0 | V18: 0 | X18: 0 | Z18: 2022-09-06 | AA18: 51680 | AC18: дата транша на закупку | AD18: Сумма
A19: =IF(AND(B19>=[1]СВОДНАЯ!$B$25,B19<=[1]СВОДНАЯ!$C$25),1,0) -> 0 | B19: 2022-08-14 | D19: 0 | E19: 0 | F19: 0 | N19: 0 | P19: 0 | R19: 0 | T19: 0 | V19: 0 | X19: 0
A20: =IF(AND(B20>=[1]СВОДНАЯ!$B$25,B20<=[1]СВОДНАЯ!$C$25),1,0) -> 0 | B20: 2022-08-15 | D20: 0 | E20: 0 | F20: 0 | N20: 0 | P20: 0 | R20: 0 | T20: 0 | V20: 0 | X20: 0
A21: =IF(AND(B21>=[1]СВОДНАЯ!$B$25,B21<=[1]СВОДНАЯ!$C$25),1,0) -> 0 | B21: 2022-08-16 | D21: 98000 | E21: 31966 | F21: 66034 | H21: 20966 | I21: 7500 | J21: 2500 | K21: 1000 | M21: 140 | N21: 98000 | P21: 0 | R21: 0 | T21: 0 | V21: 0 | X21: 0
A22: =IF(AND(B22>=[1]СВОДНАЯ!$B$25,B22<=[1]СВОДНАЯ!$C$25),1,0) -> 0 | B22: 2022-08-17 | D22: 0 | E22: 750 | F22: -750 | L22: 750 | N22: 0 | P22: 0 | R22: 0 | T22: 0 | V22: 0 | X22: 0
A23: =IF(AND(B23>=[1]СВОДНАЯ!$B$25,B23<=[1]СВОДНАЯ!$C$25),1,0) -> 0 | B23: 2022-08-18 | D23: 0 | E23: 0 | F23: 0 | N23: 0 | P23: 0 | R23: 0 | T23: 0 | V23: 0 | X23: 0
A24: =IF(AND(B24>=[1]СВОДНАЯ!$B$25,B24<=[1]СВОДНАЯ!$C$25),1,0) -> 0 | B24: 2022-08-19 | D24: 0 | E24: 19067 | F24: -19067 | H24: 19067 | N24: 0 | P24: 0 | R24: 0 | T24: 0 | V24: 0 | X24: 0
A25: =IF(AND(B25>=[1]СВОДНАЯ!$B$25,B25<=[1]СВОДНАЯ!$C$25),1,0) -> 0 | B25: 2022-08-20 | D25: 1050 | E25: 0 | F25: 1050 | N25: 0 | P25: 0 | R25: 0 | T25: 0 | U25: 30 | V25: 1050 | X25: 0
A26: =IF(AND(B26>=[1]СВОДНАЯ!$B$25,B26<=[1]СВОДНАЯ!$C$25),1,0) -> 0 | B26: 2022-08-21 | D26: 67900 | E26: 10000 | F26: 57900 | I26: 7500 | J26: 2500 | M26: 92 | N26: 64400 | O26: 1 | P26: 3500 | R26: 0 | T26: 0 | V26: 0 | X26: 0
A27: =IF(AND(B27>=[1]СВОДНАЯ!$B$25,B27<=[1]СВОДНАЯ!$C$25),1,0) -> 0 | B27: 2022-08-22 | D27: 1050 | E27: 16045 | F27: -14995 | H27: 16045 | N27: 0 | P27: 0 | R27: 0 | T27: 0 | U27: 30 | V27: 1050 | X27: 0
A28: =IF(AND(B28>=[1]СВОДНАЯ!$B$25,B28<=[1]СВОДНАЯ!$C$25),1,0) -> 0 | B28: 2022-08-23 | D28: 84865 | E28: 11000 | F28: 73865 | I28: 7500 | J28: 2500 | K28: 1000 | M28: 100 | N28: 70000 | O28: 1 | P28: 3500 | R28: 0 | S28: 40 | T28: =S28*250 -> 10000 | U28: 39 | V28: 1365 | X28: 0
A29: =IF(AND(B29>=[1]СВОДНАЯ!$B$25,B29<=[1]СВОДНАЯ!$C$25),1,0) -> 0 | B29: 2022-08-24 | D29: 55300 | E29: 52000 | F29: 3300 | I29: 7500 | J29: 2500 | L29: 42000 | M29: 79 | N29: 55300 | P29: 0 | R29: 0 | T29: 0 | V29: 0 | X29: 0
A30: =IF(AND(B30>=[1]СВОДНАЯ!$B$25,B30<=[1]СВОДНАЯ!$C$25),1,0) -> 0 | B30: 2022-08-25 | D30: 0 | E30: 0 | F30: 0 | N30: 0 | P30: 0 | R30: 0 | T30: 0 | V30: 0 | X30: 0
A31: =IF(AND(B31>=[1]СВОДНАЯ!$B$25,B31<=[1]СВОДНАЯ!$C$25),1,0) -> 0 | B31: 2022-08-26 | D31: 1365 | E31: 0 | F31: 1365 | N31: 0 | P31: 0 | R31: 0 | T31: 0 | U31: 39 | V31: 1365 | X31: 0
A32: =IF(AND(B32>=[1]СВОДНАЯ!$B$25,B32<=[1]СВОДНАЯ!$C$25),1,0) -> 0 | B32: 2022-08-27 | D32: 77000 | E32: 51023 | F32: 25977 | H32: 39023 | I32: 7500 | J32: 2500 | K32: 2000 | M32: 100 | N32: 70000 | O32: 2 | P32: 7000 | R32: 0 | T32: 0 | V32: 0 | X32: 0
A33: =IF(AND(B33>=[1]СВОДНАЯ!$B$25,B33<=[1]СВОДНАЯ!$C$25),1,0) -> 0 | B33: 2022-08-28 | D33: 7350 | E33: 13674 | F33: -6324 | H33: 13674 | N33: 0 | P33: 0 | Q33: 1 | R33: 3500 | T33: 0 | U33: 110 | V33: 3850 | X33: 0
A34: =IF(AND(B34>=[1]СВОДНАЯ!$B$25,B34<=[1]СВОДНАЯ!$C$25),1,0) -> 0 | B34: 2022-08-29 | D34: 66500 | E34: 24421 | F34: 42079 | H34: 18599 | K34: 1500 | L34: 4322 | M34: 90 | N34: 63000 | O34: 1 | P34: 3500 | R34: 0 | T34: 0 | V34: 0 | X34: 0
A35: =IF(AND(B35>=[1]СВОДНАЯ!$B$25,B35<=[1]СВОДНАЯ!$C$25),1,0) -> 0 | B35: 2022-08-30 | D35: 15000 | E35: 39519 | F35: -24519 | H35: 39519 | M35: 30 | N35: =M35*500 -> 15000 | P35: 0 | R35: 0 | T35: 0 | V35: 0 | X35: 0
A36: =IF(AND(B36>=[1]СВОДНАЯ!$B$25,B36<=[1]СВОДНАЯ!$C$25),1,0) -> 0 | B36: 2022-08-31 | D36: 0 | E36: 0 | F36: 0 | N36: 0 | P36: 0 | R36: 0 | T36: 0 | V36: 0 | X36: 0
A37: =IF(AND(B37>=[1]СВОДНАЯ!$B$25,B37<=[1]СВОДНАЯ!$C$25),1,0) -> 0 | B37: 2022-09-01 | D37: 0 | E37: 0 | F37: 0 | N37: 0 | P37: 0 | R37: 0 | T37: 0 | V37: 0 | X37: 0
A38: =IF(AND(B38>=[1]СВОДНАЯ!$B$25,B38<=[1]СВОДНАЯ!$C$25),1,0) -> 0 | B38: 2022-09-02 | D38: 0 | E38: 0 | F38: 0 | N38: 0 | P38: 0 | R38: 0 | T38: 0 | V38: 0 | X38: 0
A39: =IF(AND(B39>=[1]СВОДНАЯ!$B$25,B39<=[1]СВОДНАЯ!$C$25),1,0) -> 0 | B39: 2022-09-03 | D39: 0 | E39: 0 | F39: 0 | N39: 0 | P39: 0 | R39: 0 | T39: 0 | V39: 0 | X39: 0
A40: =IF(AND(B40>=[1]СВОДНАЯ!$B$25,B40<=[1]СВОДНАЯ!$C$25),1,0) -> 0 | B40: 2022-09-04 | D40: 0 | E40: 0 | F40: 0 | N40: 0 | P40: 0 | R40: 0 | T40: 0 | V40: 0 | X40: 0
A41: =IF(AND(B41>=[1]СВОДНАЯ!$B$25,B41<=[1]СВОДНАЯ!$C$25),1,0) -> 0 | B41: 2022-09-05 | D41: 0 | E41: 0 | F41: 0 | N41: 0 | P41: 0 | R41: 0 | T41: 0 | V41: 0 | X41: 0
A42: =IF(AND(B42>=[1]СВОДНАЯ!$B$25,B42<=[1]СВОДНАЯ!$C$25),1,0) -> 0 | B42: 2022-09-06 | D42: 0 | E42: 0 | F42: 0 | N42: 0 | P42: 0 | R42: 0 | T42: 0 | V42: 0 | X42: 0
A43: =IF(AND(B43>=[1]СВОДНАЯ!$B$25,B43<=[1]СВОДНАЯ!$C$25),1,0) -> 0 | B43: 2022-09-07 | D43: 0 | E43: 0 | F43: 0 | N43: 0 | P43: 0 | R43: 0 | T43: 0 | V43: 0 | X43: 0
A44: =IF(AND(B44>=[1]СВОДНАЯ!$B$25,B44<=[1]СВОДНАЯ!$C$25),1,0) -> 0 | B44: 2022-09-08 | D44: 0 | E44: 0 | F44: 0 | N44: 0 | P44: 0 | R44: 0 | T44: 0 | V44: 0 | X44: 0
A45: =IF(AND(B45>=[1]СВОДНАЯ!$B$25,B45<=[1]СВОДНАЯ!$C$25),1,0) -> 0 | B45: 2022-09-09 | D45: 0 | E45: 0 | F45: 0 | N45: 0 | P45: 0 | R45: 0 | T45: 0 | V45: 0 | X45: 0
A46: =IF(AND(B46>=[1]СВОДНАЯ!$B$25,B46<=[1]СВОДНАЯ!$C$25),1,0) -> 0 | B46: 2022-09-10 | D46: 0 | E46: 0 | F46: 0 | N46: 0 | P46: 0 | R46: 0 | T46: 0 | V46: 0 | X46: 0
A47: =IF(AND(B47>=[1]СВОДНАЯ!$B$25,B47<=[1]СВОДНАЯ!$C$25),1,0) -> 0 | B47: 2022-09-11 | D47: 0 | E47: 0 | F47: 0 | N47: 0 | P47: 0 | R47: 0 | T47: 0 | V47: 0 | X47: 0
A48: =IF(AND(B48>=[1]СВОДНАЯ!$B$25,B48<=[1]СВОДНАЯ!$C$25),1,0) -> 0 | B48: 2022-09-12 | D48: 0 | E48: 0 | F48: 0 | N48: 0 | P48: 0 | R48: 0 | T48: 0 | V48: 0 | X48: 0
A49: =IF(AND(B49>=[1]СВОДНАЯ!$B$25,B49<=[1]СВОДНАЯ!$C$25),1,0) -> 0 | B49: 2022-09-13 | D49: 0 | E49: 0 | F49: 0 | N49: 0 | P49: 0 | R49: 0 | T49: 0 | V49: 0 | X49: 0
A50: =IF(AND(B50>=[1]СВОДНАЯ!$B$25,B50<=[1]СВОДНАЯ!$C$25),1,0) -> 0 | B50: 2022-09-14 | D50: 0 | E50: 0 | F50: 0 | N50: 0 | P50: 0 | R50: 0 | T50: 0 | V50: 0 | X50: 0
A51: =IF(AND(B51>=[1]СВОДНАЯ!$B$25,B51<=[1]СВОДНАЯ!$C$25),1,0) -> 0 | B51: 2022-09-15 | D51: 0 | E51: 0 | F51: 0 | N51: 0 | P51: 0 | R51: 0 | T51: 0 | V51: 0 | X51: 0
A52: =IF(AND(B52>=[1]СВОДНАЯ!$B$25,B52<=[1]СВОДНАЯ!$C$25),1,0) -> 0 | B52: 2022-09-16 | D52: 0 | E52: 0 | F52: 0 | N52: 0 | P52: 0 | R52: 0 | T52: 0 | V52: 0 | X52: 0
A53: =IF(AND(B53>=[1]СВОДНАЯ!$B$25,B53<=[1]СВОДНАЯ!$C$25),1,0) -> 0 | B53: 2022-09-17 | D53: 0 | E53: 0 | F53: 0 | N53: 0 | P53: 0 | R53: 0 | T53: 0 | V53: 0 | X53: 0
A54: =IF(AND(B54>=[1]СВОДНАЯ!$B$25,B54<=[1]СВОДНАЯ!$C$25),1,0) -> 0 | B54: 2022-09-18 | D54: 0 | E54: 0 | F54: 0 | N54: 0 | P54: 0 | R54: 0 | T54: 0 | V54: 0 | X54: 0
A55: =IF(AND(B55>=[1]СВОДНАЯ!$B$25,B55<=[1]СВОДНАЯ!$C$25),1,0) -> 0 | B55: 2022-09-19 | D55: 0 | E55: 0 | F55: 0 | N55: 0 | P55: 0 | R55: 0 | T55: 0 | V55: 0 | X55: 0
A56: =IF(AND(B56>=[1]СВОДНАЯ!$B$25,B56<=[1]СВОДНАЯ!$C$25),1,0) -> 0 | B56: 2022-09-20 | D56: 0 | E56: 0 | F56: 0 | N56: 0 | P56: 0 | R56: 0 | T56: 0 | V56: 0 | X56: 0
A57: =IF(AND(B57>=[1]СВОДНАЯ!$B$25,B57<=[1]СВОДНАЯ!$C$25),1,0) -> 0 | B57: 2022-09-21 | D57: 0 | E57: 0 | F57: 0 | N57: 0 | P57: 0 | R57: 0 | T57: 0 | V57: 0 | X57: 0
A58: =IF(AND(B58>=[1]СВОДНАЯ!$B$25,B58<=[1]СВОДНАЯ!$C$25),1,0) -> 0 | B58: 2022-09-22 | D58: 0 | E58: 0 | F58: 0 | N58: 0 | P58: 0 | R58: 0 | T58: 0 | V58: 0 | X58: 0
A59: =IF(AND(B59>=[1]СВОДНАЯ!$B$25,B59<=[1]СВОДНАЯ!$C$25),1,0) -> 0 | B59: 2022-09-23 | D59: 0 | E59: 0 | F59: 0 | N59: 0 | P59: 0 | R59: 0 | T59: 0 | V59: 0 | X59: 0
A60: =IF(AND(B60>=[1]СВОДНАЯ!$B$25,B60<=[1]СВОДНАЯ!$C$25),1,0) -> 0 | B60: 2022-09-24 | D60: 0 | E60: 0 | F60: 0 | N60: 0 | P60: 0 | R60: 0 | T60: 0 | V60: 0 | X60: 0
A61: =IF(AND(B61>=[1]СВОДНАЯ!$B$25,B61<=[1]СВОДНАЯ!$C$25),1,0) -> 0 | B61: 2022-09-25 | D61: 0 | E61: 0 | F61: 0 | N61: 0 | P61: 0 | R61: 0 | T61: 0 | V61: 0 | X61: 0
A62: =IF(AND(B62>=[1]СВОДНАЯ!$B$25,B62<=[1]СВОДНАЯ!$C$25),1,0) -> 0 | B62: 2022-09-26 | D62: 0 | E62: 0 | F62: 0 | N62: 0 | P62: 0 | R62: 0 | T62: 0 | V62: 0 | X62: 0
A63: =IF(AND(B63>=[1]СВОДНАЯ!$B$25,B63<=[1]СВОДНАЯ!$C$25),1,0) -> 0 | B63: 2022-09-27 | D63: 0 | E63: 0 | F63: 0 | N63: 0 | P63: 0 | R63: 0 | T63: 0 | V63: 0 | X63: 0
A64: =IF(AND(B64>=[1]СВОДНАЯ!$B$25,B64<=[1]СВОДНАЯ!$C$25),1,0) -> 0 | B64: 2022-09-28 | D64: 0 | E64: 0 | F64: 0 | N64: 0 | P64: 0 | R64: 0 | T64: 0 | V64: 0 | X64: 0
A65: =IF(AND(B65>=[1]СВОДНАЯ!$B$25,B65<=[1]СВОДНАЯ!$C$25),1,0) -> 0 | B65: 2022-09-29 | D65: 0 | E65: 0 | F65: 0 | N65: 0 | P65: 0 | R65: 0 | T65: 0 | V65: 0 | X65: 0
A66: =IF(AND(B66>=[1]СВОДНАЯ!$B$25,B66<=[1]СВОДНАЯ!$C$25),1,0) -> 0 | B66: 2022-09-30 | D66: 0 | E66: 0 | F66: 0 | N66: 0 | P66: 0 | R66: 0 | T66: 0 | V66: 0 | X66: 0
A67: =IF(AND(B67>=[1]СВОДНАЯ!$B$25,B67<=[1]СВОДНАЯ!$C$25),1,0) -> 0 | B67: 2022-10-01 | D67: 0 | E67: 0 | F67: 0 | N67: 0 | P67: 0 | R67: 0 | T67: 0 | V67: 0 | X67: 0
